fUSD/lending_fUSD_20250930
["ID","MTS","AMOUNT","RATE_DAILY","PERIOD"]
[388516434,1759228245170,-500.0,0.00019273,7]
[388516435,1759228245184,-500.0,0.00019273,7]
[388516436,1759228245193,-500.0,0.00019273,7]
[388516437,1759228245202,-500.0,0.00019273,7]
[388516438,1759228245210,-500.0,0.00019273,7]
[388516439,1759228245219,-500.0,0.00019273,7]
[388516440,1759228245228,-500.0,0.00019273,7]
[388516441,1759228245236,-500.0,0.00019273,7]
[388516442,1759228245243,-500.0,0.00019273,7]
[388516443,1759228245251,-500.0,0.00019273,7]
[388516444,1759228245261,-197.78,0.00019273,7]
[388516445,1759228245270,-500.0,0.00019273,7]
[388516446,1759228245278,-161.50922693,0.00019279,2]
[388516447,1759228245286,-981.73249081,0.00019279,2]
[388516448,1759228245295,-205.54044715,0.00019279,2]
[388516449,1759228245302,-205.54044715,0.0001928,2]
[388516450,1759228245311,-8659.42680608,0.0001928,2]
[388516451,1759228245319,-159.5583909,0.0001928,2]
[388516452,1759228245327,-5000.0,0.0001928,2]
[388516453,1759228245336,-1545.112685,0.0001928,2]
[388516455,1759228245345,-205.54044715,0.0001928,2]
[388516456,1759228245354,-2985.37589068,0.0001928,2]
[388516458,1759228245364,-2000.0,0.00019286,2]
[388516459,1759228245373,-3046.87543435,0.00019291,2]
[388516460,1759228245382,-212.67391702,0.00019298,2]
[388516461,1759228245391,-1251.58644,0.000193,2]
[388516462,1759228245400,-3046.87543435,0.00019302,2]
[388516463,1759228245409,-3046.87543435,0.00019314,2]
[388516464,1759228245418,-3046.87543435,0.00019325,2]
[388516465,1759228245427,-1000.0,0.00019333,2]
[388516466,1759228245435,-3046.87543435,0.00019337,2]
[388516467,1759228245444,-183.9083975,0.0001934,2]
[388516468,1759228245452,-3046.87543435,0.00019348,2]
[388516469,1759228245460,-3046.87543435,0.0001936,2]
[388516470,1759228245468,-258.51889631,0.00019363,2]
[388516471,1759228245477,-186.65786089,0.00019363,3]
[388516472,1759228245486,-1042.89,0.00019364,2]
[388516473,1759228245495,-295.83559617,0.00019364,2]
[388516474,1759228245505,-548.5,0.00019364,2]
[388516475,1759228245514,-1220.44,0.00019364,2]
[388516476,1759228245523,-500.0,0.00019364,2]
[388516477,1759228245532,-500.0,0.00019364,2]
[388516478,1759228245541,-567.74,0.00019364,2]
[388516479,1759228245550,-750.7,0.00019364,2]
[388516480,1759228245559,-784.31,0.00019364,2]
[388516481,1759228245568,-500.0,0.00019364,2]
[388516482,1759228245577,-3528.69,0.00019364,2]
[388516483,1759228245588,-500.0,0.00019364,2]
[388516484,1759228245597,-500.0,0.00019364,2]
[388516485,1759228245605,-1131.04,0.00019364,2]
[388516486,1759228245614,-500.0,0.00019364,2]
[388516487,1759228245622,-500.0,0.00019364,2]
[388516488,1759228245630,-917.81,0.00019364,2]
[388516489,1759228245638,-614.95,0.00019364,2]
[388516490,1759228245646,-577.14254553,0.00019364,2]
[388516491,1759228245654,-500.0,0.00019364,2]
[388516492,1759228245662,-500.0,0.00019364,2]
[388516493,1759228245670,-3910.07,0.00019364,2]
[388516494,1759228245675,-500.0,0.00019364,2]
[388516495,1759228245681,-201.89474856,0.00019364,2]
[388516496,1759228245688,-2427.12,0.00019364,2]
[388516497,1759228245695,-2484.9,0.00019364,2]
[388516498,1759228245705,-1522.11,0.00019364,2]
[388516499,1759228245714,-1372.88484836,0.00019364,2]
[388516500,1759228245723,-8870.55,0.00019364,2]
[388516501,1759228245732,-500.0,0.00019364,2]
[388516502,1759228245742,-3376.67,0.00019364,2]
[388516503,1759228245750,-5080.77,0.00019364,2]
[388516504,1759228245759,-500.0,0.00019364,2]
[388516505,1759228245768,-1449.35,0.00019365,2]
[388516506,1759228245778,-500.0,0.00019365,2]
[388516507,1759228245787,-1437.95,0.00019365,2]
[388516508,1759228245796,-1670.2,0.00019365,2]
[388516509,1759228245806,-2341.19,0.00019365,2]
[388516510,1759228245815,-959.95,0.00019365,2]
[388516511,1759228245824,-1026.92,0.00019365,2]
[388516512,1759228245835,-793.82,0.00019365,2]
[388516513,1759228245844,-500.0,0.00019365,2]
[388516514,1759228245852,-614.23,0.00019365,2]
[388516515,1759228245861,-500.0,0.00019365,2]
[388516516,1759228245871,-1037.86,0.00019365,2]
[388516517,1759228245880,-918.42,0.00019365,2]
[388516518,1759228245890,-798.42,0.00019365,2]
[388516519,1759228245900,-733.14,0.00019365,2]
[388516520,1759228245909,-5637.95,0.00019365,2]
[388516521,1759228245918,-351.74,0.00019365,2]
[388516522,1759228245928,-3820.62,0.00019365,2]
[388516524,1759228245937,-786.96,0.00019365,2]
[388516526,1759228245946,-2099.92,0.00019365,2]
[388516527,1759228245955,-500.0,0.00019365,2]
[388516528,1759228245964,-10949.37,0.00019365,2]
[388516529,1759228245973,-3191.85,0.00019365,2]
[388516530,1759228245983,-5494.81,0.00019365,2]
[388516531,1759228245992,-2572.13,0.00019365,2]
[388516532,1759228246001,-3376.66,0.00019365,2]
[388516533,1759228246010,-3377.74,0.00019365,2]
[388516534,1759228246020,-500.0,0.00019365,2]
[388516535,1759228246029,-5280.06,0.00019365,2]
[388516536,1759228246038,-1151.07,0.00019365,2]
[388516537,1759228246048,-4771.52,0.00019365,2]
[388516538,1759228246058,-3457.48,0.00019365,2]
[388516539,1759228246067,-7600.13,0.00019365,2]
[388516540,1759228246077,-17811.65,0.00019365,2]
[388516541,1759228246088,-3055.74,0.00019365,2]
[388516542,1759228246097,-500.0,0.00019365,2]
[388516543,1759228246107,-3759.18,0.00019365,2]
[388516544,1759228246116,-504.95512115,0.00019365,2]
[388516545,1759228246124,-2213.23,0.00019365,2]
[388516546,1759228246133,-525.62,0.00019365,2]
[388516547,1759228246142,-500.0,0.00019365,2]
[388516548,1759228246151,-1544.94,0.00019365,2]
[388516549,1759228246161,-4758.13,0.00019365,2]
[388516550,1759228246171,-1035.49,0.00019365,2]
[388516551,1759228246183,-3645.6,0.00019365,2]
[388516552,1759228246192,-1086.14,0.00019365,2]
[388516553,1759228246201,-784.34,0.00019365,2]
[388516554,1759228246211,-5636.63,0.00019365,2]
[388516555,1759228246221,-500.0,0.00019365,2]
[388516556,1759228246230,-5558.39,0.00019365,2]
[388516557,1759228246240,-3624.19,0.00019365,2]
[388516558,1759228246249,-70773.8655,0.00019366,2]
[388516559,1759228246258,-579.09007663,0.00019369,2]
[388516560,1759228246268,-150.0,0.0001937,4]
[388516561,1759228246277,-150.0,0.0001937,4]
[388516562,1759228246286,-150.0,0.0001937,4]
[388516563,1759228246295,-150.0,0.0001937,4]
[388516564,1759228246304,-150.0,0.0001937,4]
[388516565,1759228246313,-150.0,0.0001937,4]
[388516566,1759228246323,-292.50519311,0.0001937,4]
[388516567,1759228246333,-191.19252055,0.0001937,4]
[388516568,1759228246343,-150.0,0.0001937,4]
[388516569,1759228246352,-150.0,0.0001937,4]
[388516570,1759228246361,-150.0,0.0001937,4]
[388516571,1759228246370,-150.0,0.0001937,4]
[388516572,1759228246380,-210.00000001,0.0001937,4]
[388516573,1759228246390,-579.09007663,0.0001937,2]
[388516574,1759228246399,-3046.87543435,0.00019371,2]
[388516575,1759228246409,-500.0,0.00019373,2]
[388516576,1759228246418,-500.0,0.00019373,2]
[388516577,1759228246428,-500.0,0.00019373,2]
[388516578,1759228246437,-500.0,0.00019373,2]
[388516579,1759228246446,-519.33476992,0.00019373,2]
[388516580,1759228246455,-159.983392,0.00019373,2]
[388516581,1759228246464,-500.0,0.00019373,2]
[388516582,1759228246474,-500.0,0.00019373,2]
[388516583,1759228246483,-500.0,0.00019373,2]
[388516584,1759228246492,-500.0,0.00019373,2]
[388516585,1759228246501,-500.0,0.00019373,2]
[388516586,1759228246511,-263.84383046,0.00019373,2]
[388516587,1759228246520,-500.0,0.00019373,2]
[388516588,1759228246529,-500.0,0.00019373,2]
[388516589,1759228246538,-500.0,0.00019373,2]
[388516590,1759228246548,-500.0,0.00019373,2]
[388516591,1759228246557,-500.0,0.00019373,2]
[388516592,1759228246567,-500.0,0.00019373,2]
[388516593,1759228246576,-500.0,0.00019373,2]
[388516594,1759228246586,-500.0,0.00019373,2]
[388516595,1759228246595,-518.39603415,0.00019373,2]
[388516596,1759228246604,-372.59402105,0.00019373,2]
[388516597,1759228246614,-500.0,0.00019377,2]
[388516598,1759228246623,-582.11,0.00019378,2]
[388516599,1759228246632,-500.0,0.00019378,2]
[388516600,1759228246641,-500.0,0.00019378,2]
[388516601,1759228246651,-500.0,0.00019378,2]
[388516602,1759228246661,-500.0,0.00019378,2]
[388516603,1759228246670,-667.2,0.00019378,2]
[388516604,1759228246680,-1449.35,0.00019378,2]
[388516605,1759228246689,-6446.03,0.00019378,2]
[388516606,1759228246698,-7461.12,0.00019378,2]
[388516607,1759228246708,-12142.77,0.00019378,2]
[388516608,1759228246717,-665.65,0.00019378,2]
[388516609,1759228246920,-3396.42,0.00019378,2]
[388516610,1759228246964,-867.46,0.00019378,2]
[388516611,1759228246974,-500.0,0.00019378,2]
[388516612,1759228246984,-5434.11,0.00019378,2]
[388516613,1759228246993,-2770.12,0.00019378,2]
[388516614,1759228247003,-5127.06,0.00019378,2]
[388516615,1759228247013,-12508.24,0.00019378,2]
[388516616,1759228247023,-1360.32,0.00019378,2]
[388516617,1759228247033,-5926.22,0.00019378,2]
[388516618,1759228247042,-1277.94,0.00019378,2]
[388516619,1759228247052,-17100.17,0.00019378,2]
[388516620,1759228247062,-500.0,0.00019378,2]
[388516621,1759228247071,-500.0,0.00019378,2]
[388516622,1759228247081,-6180.7,0.00019378,2]
[388516623,1759228247092,-500.0,0.00019378,2]
[388516624,1759228247102,-2095.38,0.00019378,2]
[388516625,1759228247112,-500.0,0.00019378,2]
[388516626,1759228247121,-500.0,0.00019378,2]
[388516627,1759228247131,-1209.23,0.00019379,2]
[388516628,1759228247140,-820.35,0.00019379,2]
[388516629,1759228247149,-500.0,0.00019379,2]
[388516630,1759228247160,-500.0,0.00019379,2]
[388516631,1759228247169,-500.0,0.00019379,2]
[388516632,1759228247181,-500.0,0.00019379,2]
[388516633,1759228247191,-500.0,0.00019379,2]
[388516634,1759228247201,-788.01,0.00019379,2]
[388516635,1759228247211,-1336.89,0.00019379,2]
[388516636,1759228247220,-500.0,0.00019379,2]
[388516637,1759228247230,-3214.4,0.00019379,2]
[388516638,1759228247239,-1473.27,0.00019379,2]
[388516639,1759228247249,-662.16,0.00019379,2]
[388516640,1759228247262,-552.22,0.00019379,2]
[388516641,1759228247271,-500.0,0.00019379,2]
[388516642,1759228247280,-1003.71,0.00019379,2]
[388516643,1759228247290,-701.02,0.00019379,2]
[388516644,1759228247299,-303.62185238,0.00019379,2]
[388516645,1759228247308,-2903.57,0.00019379,2]
[388516646,1759228247317,-1372.67,0.00019379,2]
[388516647,1759228247327,-500.0,0.00019379,2]
[388516648,1759228247336,-1915.81,0.00019379,2]
[388516649,1759228247345,-193.21802759,0.00019379,2]
[388516650,1759228247355,-500.0,0.00019379,2]
[388516651,1759228247365,-500.0,0.00019379,2]
[388516652,1759228247374,-500.0,0.00019379,2]
[388516653,1759228247384,-500.0,0.00019379,2]
[388516654,1759228247394,-500.0,0.00019379,2]
[388516655,1759228247403,-500.0,0.00019379,2]
[388516656,1759228247412,-500.0,0.00019379,2]
[388516657,1759228247421,-500.0,0.00019379,2]
[388516658,1759228247430,-527.13,0.00019379,2]
[388516659,1759228247439,-500.0,0.00019379,2]
[388516660,1759228247449,-500.0,0.00019379,2]
[388516661,1759228247458,-3418.34,0.00019379,2]
[388516662,1759228247467,-1156.41,0.00019379,2]
[388516663,1759228247476,-500.0,0.00019379,2]
[388516664,1759228247485,-522.18,0.00019379,2]
[388516665,1759228247495,-707.55,0.00019379,2]
[388516666,1759228247505,-500.0,0.00019379,2]
[388516667,1759228247514,-1078.26,0.00019379,2]
[388516668,1759228247523,-1078.26,0.00019379,2]
[388516669,1759228247532,-1078.26,0.00019379,2]
[388516670,1759228247542,-1078.26,0.00019379,2]
[388516671,1759228247551,-1078.26,0.00019379,2]
[388516672,1759228247561,-1078.26,0.00019379,2]
[388516673,1759228247571,-1078.26,0.00019379,2]
[388516674,1759228247580,-1078.26,0.00019379,2]
[388516675,1759228247591,-1078.26,0.00019379,2]
[388516676,1759228247600,-500.0,0.00019379,2]
[388516677,1759228247611,-1078.26,0.00019379,2]
[388516678,1759228247620,-1078.26,0.00019379,2]
[388516679,1759228247630,-500.0,0.00019379,2]
[388516680,1759228247639,-500.0,0.00019379,2]
[388516681,1759228247649,-500.0,0.00019379,2]
[388516682,1759228247658,-2695.16,0.00019379,2]
[388516683,1759228247669,-500.0,0.00019379,2]
[388516684,1759228247678,-1961.1,0.00019379,2]
[388516685,1759228247688,-500.0,0.00019379,2]
[388516686,1759228247698,-1997.98,0.00019379,2]
[388516687,1759228247708,-500.0,0.00019379,2]
[388516688,1759228247718,-4386.95,0.00019379,2]
[388516689,1759228247728,-5813.73,0.00019379,2]
[388516690,1759228247738,-500.0,0.00019379,2]
[388516691,1759228247747,-500.0,0.00019379,2]
[388516692,1759228247757,-4267.31,0.00019379,2]
[388516693,1759228247768,-500.0,0.00019379,2]
[388516694,1759228247778,-1505.61,0.00019379,2]
[388516695,1759228247787,-4706.71,0.00019379,2]
[388516696,1759228247798,-869.08,0.00019379,2]
[388516697,1759228247808,-500.0,0.00019379,2]
[388516698,1759228247818,-2582.31,0.00019379,2]
[388516699,1759228247828,-500.0,0.00019379,2]
[388516700,1759228247839,-500.0,0.00019379,2]
[388516701,1759228247849,-4161.1,0.00019379,2]
[388516702,1759228247860,-1078.73,0.00019379,2]
[388516703,1759228247870,-500.0,0.00019379,2]
[388516704,1759228247880,-2676.89,0.00019379,2]
[388516705,1759228247890,-1539.82,0.00019379,2]
[388516706,1759228247900,-500.0,0.00019379,2]
[388516707,1759228247910,-784.97,0.00019379,2]
[388516708,1759228247919,-1672.28,0.00019379,2]
[388516709,1759228247929,-500.0,0.00019379,2]
[388516710,1759228247939,-4915.65,0.00019379,2]
[388516711,1759228247948,-500.0,0.00019379,2]
[388516712,1759228247958,-1116.19,0.00019379,2]
[388516713,1759228247968,-500.0,0.00019379,2]
[388516714,1759228247978,-500.0,0.00019379,2]
[388516715,1759228247989,-3139.96,0.00019379,2]
[388516716,1759228247998,-2687.25,0.00019379,2]
[388516717,1759228248009,-594.07,0.00019379,2]
[388516718,1759228248018,-500.0,0.00019379,2]
[388516719,1759228248029,-4218.9,0.00019379,2]
[388516720,1759228248039,-500.0,0.00019379,2]
[388516721,1759228248049,-4026.9,0.00019379,2]
[388516722,1759228248058,-500.0,0.00019379,2]
[388516723,1759228248068,-1513.71,0.00019379,2]
[388516724,1759228248079,-500.0,0.00019379,2]
[388516725,1759228248090,-1754.94,0.00019379,2]
[388516726,1759228248099,-4029.67,0.00019379,2]
[388516727,1759228248109,-500.0,0.00019379,2]
[388516728,1759228248119,-500.0,0.00019379,2]
[388516729,1759228248129,-500.0,0.00019379,2]
[388516730,1759228248138,-500.0,0.00019379,2]
[388516731,1759228248147,-500.0,0.00019379,2]
[388516732,1759228248157,-2033.26,0.00019379,2]
[388516733,1759228248167,-500.0,0.00019379,2]
[388516734,1759228248176,-4220.74,0.00019379,2]
[388516735,1759228248189,-500.0,0.00019379,2]
[388516736,1759228248199,-673.17,0.00019379,2]
[388516737,1759228248208,-282.10004176,0.00019379,2]
[388516738,1759228248218,-2892.52,0.00019379,2]
[388516739,1759228248229,-500.0,0.00019379,2]
[388516740,1759228248239,-500.0,0.00019379,2]
[388516741,1759228248248,-909.7,0.00019379,2]
[388516742,1759228248260,-500.0,0.00019379,2]
[388516743,1759228248271,-500.0,0.00019379,2]
[388516744,1759228248281,-2530.33,0.00019379,2]
[388516745,1759228248292,-500.0,0.00019379,2]
[388516746,1759228248302,-500.0,0.00019379,2]
[388516747,1759228248312,-500.0,0.00019379,2]
[388516748,1759228248323,-1892.42,0.00019379,2]
[388516749,1759228248333,-500.0,0.00019379,2]
[388516750,1759228248345,-500.0,0.00019379,2]
[388516751,1759228248355,-1628.51,0.00019379,2]
[388516752,1759228248364,-2359.99,0.00019379,2]
[388516753,1759228248375,-500.0,0.00019379,2]
[388516754,1759228248384,-500.0,0.00019379,2]
[388516755,1759228248394,-3334.43,0.00019379,2]
[388516756,1759228248403,-543.42,0.00019379,2]
[388516757,1759228248414,-500.0,0.00019379,2]
[388516758,1759228248423,-500.0,0.00019379,2]
[388516759,1759228248433,-500.0,0.00019379,2]
[388516760,1759228248443,-3613.91,0.00019379,2]
[388516761,1759228248453,-500.0,0.00019379,2]
[388516762,1759228248463,-500.0,0.00019379,2]
[388516763,1759228248474,-500.0,0.00019379,2]
[388516764,1759228248483,-500.0,0.00019379,2]
[388516765,1759228248493,-500.0,0.00019379,2]
[388516766,1759228248502,-1060.23,0.00019379,2]
[388516767,1759228248512,-500.0,0.00019379,2]
[388516768,1759228248522,-500.0,0.00019379,2]
[388516769,1759228248532,-500.0,0.00019379,2]
[388516770,1759228248542,-500.0,0.00019379,2]
[388516771,1759228248552,-500.0,0.00019379,2]
[388516772,1759228248563,-1706.14,0.00019379,2]
[388516773,1759228248573,-500.0,0.00019379,2]
[388516774,1759228248583,-1050.29,0.00019379,2]
[388516775,1759228248593,-657.95,0.00019379,2]
[388516776,1759228248603,-500.0,0.00019379,2]
[388516777,1759228248612,-500.0,0.00019379,2]
[388516778,1759228248622,-500.0,0.00019379,2]
[388516779,1759228248632,-1382.57,0.00019379,2]
[388516780,1759228248642,-500.0,0.00019379,2]
[388516781,1759228248651,-874.29,0.00019379,2]
[388516782,1759228248661,-442.78,0.00019379,2]
[388516783,1759228248672,-500.0,0.00019379,2]
[388516784,1759228248682,-1455.24,0.00019379,2]
[388516785,1759228248692,-500.0,0.00019379,2]
[388516786,1759228248701,-500.0,0.00019379,2]
[388516787,1759228248711,-3466.71,0.00019379,2]
[388516788,1759228248720,-1007.71,0.00019379,2]
[388516789,1759228248730,-500.0,0.00019379,2]
[388516790,1759228248740,-500.0,0.00019379,2]
[388516791,1759228248750,-3901.26,0.00019379,2]
[388516792,1759228248760,-1218.16,0.00019379,2]
[388516793,1759228248770,-500.0,0.00019379,2]
[388516794,1759228248780,-500.0,0.00019379,2]
[388516795,1759228248790,-500.0,0.00019379,2]
[388516796,1759228248799,-500.0,0.00019379,2]
[388516797,1759228248809,-500.0,0.00019379,2]
[388516798,1759228248819,-500.0,0.00019379,2]
[388516799,1759228248829,-2461.33,0.00019379,2]
[388516800,1759228248840,-500.0,0.00019379,2]
[388516801,1759228248850,-1000.0,0.00019379,2]
[388516802,1759228248860,-2080.4,0.00019379,2]
[388516803,1759228248870,-2615.3,0.00019379,2]
[388516804,1759228248879,-786.05,0.00019379,2]
[388516805,1759228248890,-500.0,0.00019379,2]
[388516806,1759228248900,-4889.44,0.00019379,2]
[388516807,1759228248910,-500.0,0.00019379,2]
[388516808,1759228248921,-2300.39,0.00019379,2]
[388516809,1759228248931,-500.0,0.00019379,2]
[388516810,1759228248941,-500.0,0.00019379,2]
[388516811,1759228248950,-500.0,0.00019379,2]
[388516812,1759228248960,-825.41,0.00019379,2]
[388516813,1759228248970,-500.0,0.00019379,2]
[388516814,1759228248980,-2254.02,0.00019379,2]
[388516815,1759228248989,-151.0,0.00019379,2]
[388516816,1759228249000,-151.0,0.00019379,2]
[388516817,1759228249010,-151.0,0.00019379,2]
[388516818,1759228249020,-151.0,0.00019379,2]
[388516819,1759228249030,-151.0,0.00019379,2]
[388516820,1759228249039,-245.0,0.00019379,2]
[388516821,1759228249049,-642.82,0.00019379,2]
[388516822,1759228249058,-602.61,0.00019379,2]
[388516823,1759228249068,-2302.18,0.00019379,2]
[388516824,1759228249078,-500.0,0.00019379,2]
[388516825,1759228249088,-500.0,0.00019379,2]
[388516826,1759228249097,-4142.07,0.00019379,2]
[388516827,1759228249107,-400.0,0.00019379,2]
[388516828,1759228249116,-500.0,0.00019379,2]
[388516829,1759228249126,-500.0,0.00019379,2]
[388516830,1759228249136,-500.0,0.00019379,2]
[388516831,1759228249145,-500.0,0.00019379,2]
[388516832,1759228249154,-3425.38,0.00019379,2]
[388516833,1759228249164,-500.0,0.00019379,2]
[388516834,1759228249173,-500.0,0.00019379,2]
[388516835,1759228249184,-350.137746,0.00019379,2]
[388516836,1759228249198,-500.0,0.00019379,2]
[388516837,1759228249208,-3766.17,0.00019379,2]
[388516838,1759228249217,-500.0,0.00019379,2]
[388516839,1759228249226,-3419.81,0.00019379,2]
[388516840,1759228249239,-500.0,0.00019379,2]
[388516841,1759228249248,-807.12,0.00019379,2]
[388516842,1759228249259,-3812.18,0.00019379,2]
[388516843,1759228249268,-1211.08,0.00019379,2]
[388516844,1759228249278,-500.0,0.00019379,2]
[388516845,1759228249288,-3122.2,0.00019379,2]
[388516846,1759228249298,-2443.6,0.00019379,2]
[388516847,1759228249307,-500.0,0.00019379,2]
[388516848,1759228249317,-500.0,0.00019379,2]
[388516849,1759228249326,-3305.95,0.00019379,2]
[388516850,1759228249337,-500.0,0.00019379,2]
[388516851,1759228249346,-2336.4,0.00019379,2]
[388516852,1759228249356,-500.0,0.00019379,2]
[388516853,1759228249365,-5900.33,0.00019379,2]
[388516854,1759228249375,-500.0,0.00019379,2]
[388516855,1759228249385,-500.0,0.00019379,2]
[388516856,1759228249395,-769.1,0.00019379,2]
[388516858,1759228249995,-204.537409,0.00019379,2]
[388516859,1759228250008,-500.0,0.00019379,2]
[388516860,1759228250019,-575.92,0.00019379,2]
[388516861,1759228250029,-204.537409,0.00019379,2]
[388516862,1759228250040,-1253.58,0.00019379,2]
[388516863,1759228250050,-500.0,0.00019379,2]
[388516864,1759228250060,-204.537409,0.00019379,2]
[388516865,1759228250070,-204.537409,0.00019379,2]
[388516866,1759228250087,-228.358251,0.00019379,2]
[388516867,1759228250097,-151.0,0.00019379,2]
[388516868,1759228250108,-228.358251,0.00019379,2]
[388516869,1759228250119,-151.0,0.00019379,2]
[388516870,1759228250129,-500.0,0.00019379,2]
[388516871,1759228250140,-228.358251,0.00019379,2]
[388516872,1759228250150,-1834.78,0.00019379,2]
[388516873,1759228250160,-151.0,0.00019379,2]
[388516874,1759228250172,-228.358251,0.00019379,2]
[388516875,1759228250182,-151.0,0.00019379,2]
[388516876,1759228250197,-151.0,0.00019379,2]
[388516877,1759228250207,-151.0,0.00019379,2]
[388516878,1759228250217,-4964.75,0.00019379,2]
[388516879,1759228250230,-151.0,0.00019379,2]
[388516880,1759228250239,-500.0,0.00019379,2]
[388516881,1759228250249,-151.0,0.00019379,2]
[388516882,1759228250260,-206.662505,0.00019379,2]
[388516883,1759228250271,-151.0,0.00019379,2]
[388516884,1759228250282,-1391.29,0.00019379,2]
[388516885,1759228250292,-500.0,0.00019379,2]
[388516886,1759228250303,-493.98899189,0.00019379,2]
[388516887,1759228250313,-3699.91,0.00019379,2]
[388516888,1759228250324,-500.0,0.00019379,2]
[388516889,1759228250334,-2857.39,0.00019379,2]
[388516890,1759228250344,-152.396631,0.00019379,2]
[388516891,1759228250354,-769.96,0.00019379,2]
[388516892,1759228250363,-152.396631,0.00019379,2]
[388516893,1759228250373,-152.396631,0.00019379,2]
[388516894,1759228250383,-152.396631,0.00019379,2]
[388516895,1759228250393,-2983.56,0.00019379,2]
[388516896,1759228250402,-1059.63,0.00019379,2]
[388516897,1759228250412,-500.0,0.00019379,2]
[388516898,1759228250422,-3883.82,0.00019379,2]
[388516899,1759228250432,-500.0,0.00019379,2]
[388516900,1759228250441,-3994.96,0.00019379,2]
[388516901,1759228250452,-363.32109029,0.00019379,2]
[388516902,1759228250462,-151.0,0.00019379,2]
[388516903,1759228250472,-500.0,0.00019379,2]
[388516904,1759228250490,-151.0,0.00019379,2]
[388516905,1759228250500,-151.0,0.00019379,2]
[388516906,1759228250510,-151.0,0.00019379,2]
[388516907,1759228250521,-3209.79,0.00019379,2]
[388516908,1759228250531,-151.0,0.00019379,2]
[388516909,1759228250541,-151.0,0.00019379,2]
[388516910,1759228250551,-2672.38,0.00019379,2]
[388516911,1759228250562,-151.0,0.00019379,2]
[388516912,1759228250572,-4947.79,0.00019379,2]
[388516913,1759228250583,-191.65002,0.00019379,2]
[388516914,1759228250594,-151.0,0.00019379,2]
[388516915,1759228250604,-500.0,0.00019379,2]
[388516916,1759228250615,-500.0,0.00019379,2]
[388516917,1759228250626,-1418.535544,0.00019379,2]
[388516918,1759228250637,-956.302284,0.00019379,2]
[388516919,1759228250647,-2275.62,0.00019379,2]
[388516920,1759228250658,-1418.535544,0.00019379,2]
[388516921,1759228250668,-956.302284,0.00019379,2]
[388516922,1759228250678,-956.302284,0.00019379,2]
[388516923,1759228250690,-1418.535544,0.00019379,2]
[388516924,1759228250700,-2509.3,0.00019379,2]
[388516925,1759228250711,-956.302284,0.00019379,2]
[388516926,1759228250722,-1418.535544,0.00019379,2]
[388516927,1759228250735,-363.821824,0.00019379,2]
[388516928,1759228250745,-3422.06,0.00019379,2]
[388516929,1759228250756,-363.821824,0.00019379,2]
[388516930,1759228250766,-500.0,0.00019379,2]
[388516931,1759228250778,-363.821824,0.00019379,2]
[388516932,1759228250789,-155.64243,0.00019379,2]
[388516933,1759228250799,-236.012389,0.00019379,2]
[388516934,1759228250811,-500.0,0.00019379,2]
[388516935,1759228250821,-363.821824,0.00019379,2]
[388516936,1759228250831,-665.650434,0.00019379,2]
[388516937,1759228250842,-492.72588,0.00019379,2]
[388516938,1759228250852,-665.650434,0.00019379,2]